Cogmind - Beta 9.6 @@@ ROGUE MODE // 2020.06.23 @ 03:36:36 Player: Kenzurith Result: Destroyed by as-22587 with Assembled Rifle Performance ------------- Evolutions (0) 0 Regions Visited (3) 600 Robots Destroyed (19) 95 Value Destroyed (210) 210 Prototype IDs (3) 60 Alien Tech Used (0) 0 Bonus (255) 255 TOTAL SCORE: 1220 Bonus ------- Aligned with FarCom 300 Friendly Fire -45 Cogmind --------- Core Integrity 0/250 Matter 228/300 Energy 125/125 System Corruption 0% Temperature Cool (0) Movement Walking (180) Ox2 Location -10/Exiles Parts ------- > --- POWER (1) -------- Light Ion Engine > --- PROPULSION (2) --- Aluminum Leg > --- UTILITY (2) ------ Medium Storage Unit Large Storage Unit > --- WEAPON (2) ------- Light Assault Rifle Mining Claw > --- INVENTORY (14) --- Ion Engine Light Ion Engine Light Ion Engine Light Treads Light Treads Aluminum Leg Aluminum Leg Heat Sink Sensor Array Advanced Terrain Scanner Particle Gun Light Assault Rifle Mining Laser Peak State ------------ > --- POWER ------------ Light Ion Engine > --- PROPULSION ------- Aluminum Leg Aluminum Leg > --- UTILITY ---------- Medium Storage Unit Large Storage Unit > --- WEAPON ----------- AWS/Thermal > --- INVENTORY -------- Ion Engine Light Ion Engine Light Ion Engine Light Treads Light Treads Aluminum Leg Aluminum Leg Heat Sink Sensor Array Advanced Terrain Scanner Particle Gun Assault Rifle Mining Laser Mining Claw [Rating: 22] Favorites ----------- Power Ion Engine Engine Ion Engine Propulsion Aluminum Leg Leg Aluminum Leg Wheel Wheel Utility Small Storage Unit Device Chronowheel Storage Small Storage Unit Weapon Light Assault Rifle Energy Gun Small Laser Ballistic Gun Light Assault Rifle Special Weapon Mining Laser Slashing Weapon Mining Claw Build | -11 -10 -10 -10 ------- Run | Scr Mat Min Exi Slots Evolved . | . . . . Power . | . . . . Propulsion . | . . . . Utility . | . . . . Weapon . | . . . . Parts Attached 31 | 6 7 11 7 Power 4 | 1 . 3 . Engine 4 | 1 . 3 . Core . | . . . . Reactor . | . . . . Propulsion 6 | 2 2 2 . Treads . | . . . . Leg 5 | 2 1 2 . Wheel 1 | . 1 . . Hover . | . . . . Flight . | . . . . Utility 6 | 1 1 1 3 Device 2 | . . . 2 Storage 4 | 1 1 1 1 Processor . | . . . . Hackware . | . . . . Protection . | . . . . Artifact . | . . . . Weapon 15 | 2 4 5 4 Energy Gun 2 | 1 . . 1 Energy Cannon . | . . . . Ballistic Gun 11 | 1 4 4 2 Ballistic Cannon . | . . . . Launcher . | . . . . Special Weapon 1 | . . 1 . Impact Weapon . | . . . . Slashing Weapon 1 | . . . 1 Piercing Weapon . | . . . . Special Melee Weapon . | . . . . Unidentified Prototypes 3 | . . . 3 Parts Lost 5 | . 2 1 2 Power . | . . . . Propulsion 2 | . 1 . 1 Utility . | . . . . Weapon 3 | . 1 1 1 Highest Loss Streak 2 | . 2 1 2 Average Slot Usage (%) 96 | . 92 99 96 Engine 13 | . 14 13 14 Leg 25 | . 24 26 28 Wheel 1 | . 2 1 . Storage 25 | . 21 28 27 Ballistic Gun 25 | . 25 26 24 Naked Turns . | . . . . Heaviest Build 30 | 12 29 29 30 Greatest Support 20 | 20 20 20 20 Greatest Overweight (x) 2 | 1 2 2 1 Average Overweight (x) . | . . 1 . Largest Inventory Capacity 14 | 6 12 14 14 Average Capacity 11 | 5 9 12 13 Most Carried 14 | 6 11 14 14 Average Carried 10 | 2 6 12 13 Final Capacity 14 | 6 12 14 14 Final Carried 14 | 6 11 14 13 Class Distribution -------------------- 100% | Mutant Dominant Class ---------------- Mutant | -10/Materials Mutant | -10/Mines Mutant | -10/Exiles Resources | -11 -10 -10 -10 ----------- Run | Scr Mat Min Exi Matter Collected 716 | 247 85 384 . Remotely . | . . . . Salvage Created 362 | . 120 242 . Parts 29 | . 14 15 . Haulers Intercepted . | . . . . Recyclers Shooed 3 | . 3 . . Parts Field Recycled . | . . . . Retrieved Matter . | . . . . Parts Self-Destructed . | . . . . Prevented . | . . . . Kills | -11 -10 -10 -10 ------- Run | Scr Mat Min Exi Combat Hostiles Destroyed 18 | . 7 11 . Guns 18 | . 7 11 . Classes Destroyed 4 | . 2 2 . Builder 1 | . . 1 . Swarmer 9 | . 6 3 . Grunt 3 | . 1 2 . Assembled 6 | . . 6 . Best Kill Streak 5 | . 3 5 . Combat Bots Only 4 | . 3 4 . Max Kills in Single Turn 1 | . 1 1 . Gunslinging . | . . . . Exploded . | . . . . Melee . | . . . . Uniques/NPCs Destroyed . | . . . . Combat | -11 -10 -10 -10 -------- Run | Scr Mat Min Exi Damage Taken 1126 | . 461 438 227 Core 253 | . 107 109 37 Absorbed by Shields . | . . . . Core Remaining (%) 100 | 100 . . . Volleys Fired 73 | . 35 35 3 Largest 2 | . 2 2 2 Hottest 120 | . 60 120 40 Shots Fired 144 | . 69 69 6 Gun 142 | . 69 67 6 Cannon . | . . . . Launcher . | . . . . Special 2 | . . 2 . Kinetic 134 | . 61 67 6 Thermal 10 | . 8 2 . Explosive . | . . . . Electromagnetic . | . . . . Robot Hit Streak 9 | . 9 7 1 Robot Miss Streak 6 | . 6 2 4 Penetration Max . | . . . . Secondary Targets 3 | . 1 2 . Max Gunslinging Chain 1 | . 1 1 . Shots Hit Robots 89 | . 44 42 3 Core Hits 39 | . 12 25 2 Critical Hits 1 | . . 1 . Critical Kills 1 | . . 1 . Critical Parts Destroyed . | . . . . Melee Attacks 1 | . . . 1 Impact . | . . . . Slashing 1 | . . . 1 Piercing . | . . . . Sneak Attacks . | . . . . Combat Hostiles . | . . . . Follow-up Attacks . | . . . . Damage Inflicted 1014 | . 515 441 58 Guns 990 | . 515 441 34 Cannons . | . . . . Explosions . | . . . . Melee 24 | . . . 24 Ramming . | . . . . Kinetic 949 | . 474 441 34 Thermal 41 | . 41 . . Explosive . | . . . . Electromagnetic . | . . . . Impact . | . . . . Slashing 24 | . . . 24 Piercing . | . . . . Highest Corruption . | . . . . Average Corruption . | . . . . Corruption Purged . | . . . . Overload Shots . | . . . . Overflow Damage . | . . . . Projectiles . | . . . . Explosions . | . . . . Melee . | . . . . Knockbacks . | . . . . Impact . | . . . . Kinetic . | . . . . Secondary . | . . . . Self-Inflicted Damage . | . . . . Shots . | . . . . Rammed . | . . . . Targets Rammed . | . . . . Kicked . | . . . . Crushed . | . . . . Highest Temperature 40 | . 6 40 . Average Temperature 11 | . 2 16 . Received Heat Transfer 376 | . 156 200 20 Siege Activations . | . . . . Robots Corrupted . | . . . . Combat Hostiles . | . . . . Parts Fried . | . . . . Impact Corruptions . | . . . . Robots Melted . | . . . . Combat Hostiles . | . . . . Parts Melted . | . . . . Heat Transferred 100 | . 100 . . Parts Sabotaged . | . . . . Parts Stolen . | . . . . Parts Stripped . | . . . . Power Chain Reactions . | . . . . Missiles Intercepted . | . . . . Alert | -11 -10 -10 -10 ------- Run | Scr Mat Min Exi Peak Influence 188 | . 188 60 . Average Influence 37 | . 49 29 . Maximum Alert Level . | . . . . Low Security (%) 100 | 100 100 100 . Level 1 . | . . . . Level 2 . | . . . . Level 3 . | . . . . Level 4 . | . . . . Level 5 . | . . . . High Security . | . . . . Max Security . | . . . . Squads Dispatched 1 | . . 1 . Investigation 1 | . . 1 . Extermination . | . . . . Reinforcement . | . . . . Assault . | . . . . Garrison . | . . . . Intercept . | . . . . Construction Impeded . | . . . . Haulers Reinforced . | . . . . Stealth | -11 -10 -10 -10 --------- Run | Scr Mat Min Exi Distress Signals 1 | . 1 . . Communications Jammed . | . . . . Distress Signals . | . . . . Times Spotted 32 | . 12 13 7 Peak Tracking Total 9 | . 4 4 9 Tactical Retreats 4 | . 1 3 . Traps | -11 -10 -10 -10 ------- Run | Scr Mat Min Exi Traps Triggered . | . . . . Indirectly . | . . . . Trap Hack Attempts . | . . . . Triggered . | . . . . Disarmed 8 | . 8 . . Reprogrammed . | . . . . Reused . | . . . . Traps Extracted . | . . . . Installed . | . . . . Triggered . | . . . . Machines | -11 -10 -10 -10 ---------- Run | Scr Mat Min Exi Machines Disabled . | . . . . Max in Single Turn . | . . . . Machines Sabotaged . | . . . . Garrisons Compromised . | . . . . Overloaded Fab Kills . | . . . . Fab Network Shutdowns . | . . . . Hacking | -11 -10 -10 -10 --------- Run | Scr Mat Min Exi Machines Accessed 7 | . 6 1 . Terminals 5 | . 5 . . Fabricators . | . . . . Repair Stations 1 | . 1 . . Recycling Units . | . . . . Scanalyzers . | . . . . Garrison Access . | . . . . Total Hacks 21 | . 20 1 . Successful 13 | . 12 1 . Failed 8 | . 8 . . Catastrophic . | . . . . Database Lockouts . | . . . . Manual 18 | . 17 . 1 Terminals 18 | . 18 . . Fabricators . | . . . . Repair Stations 2 | . 2 . . Recycling Units . | . . . . Scanalyzers . | . . . . Garrison Access . | . . . . Terminal Hacks 6 | . 5 1 . Open Door 1 | . . 1 . Terminal Index 1 | . 1 . . Locate Traps 1 | . 1 . . Disarm Traps 2 | . 2 . . Registered Components 1 | . 1 . . Fabricator Hacks . | . . . . Repair Station Hacks 2 | . 2 . . Scan Component 1 | . 1 . . Repair 1 | . 1 . . Recycling Unit Hacks . | . . . . Scanalyzer . | . . . . Garrison Access Hacks . | . . . . Unauthorized Hacks 5 | . 5 . . Terminals 5 | . 5 . . Botnet 5 | . 5 . . Fabricators . | . . . . Repair Stations . | . . . . Recycling Units . | . . . . Scanalyzers . | . . . . Garrison Access . | . . . . Data Cores Recovered . | . . . . Used . | . . . . Hacking Detections 6 | . 6 . . Full Trace Events . | . . . . Feedback Events . | . . . . Feedback Blocked . | . . . . Robot Schematics Acquired . | . . . . Robots Built . | . . . . Matter . | . . . . Time . | . . . . Total Robot Build Rating . | . . . . Part Schematics Acquired . | . . . . Parts Built . | . . . . Matter . | . . . . Time . | . . . . Total Part Build Rating . | . . . . Parts Repaired 1 | . 1 . . Time 26 | . 26 . . Parts Recycled . | . . . . Recycled Matter . | . . . . Retrieved Matter . | . . . . Retrieved Components . | . . . . Parts Scanalyzed . | . . . . Part Schematics Acquired . | . . . . Parts Damaged . | . . . . Bothacking | -11 -10 -10 -10 ------------ Run | Scr Mat Min Exi Used RIF Installer . | . . . . Robots Hacked . | . . . . Non-combat . | . . . . Combat . | . . . . Robot Hacks Applied . | . . . . Relay Couplers Released . | . . . . Robots Rewired . | . . . . Allies Hacked . | . . . . Hacks Repelled . | . . . . Allies | -11 -10 -10 -10 -------- Run | Scr Mat Min Exi Total Allies . | . . . . Largest Group . | . . . . Highest-Rated Group . | . . . . Highest-Rated Ally . | . . . . Total Orders . | . . . . Ally Attacks . | . . . . Total Damage . | . . . . Kills . | . . . . Allies Corrupted . | . . . . Allies Melted . | . . . . Intel | -11 -10 -10 -10 ------- Run | Scr Mat Min Exi Robot Analysis Total . | . . . . Derelict Logs Recovered 1 | . . 1 . Drone Launches . | . . . . Drone Recoveries . | . . . . Exploration | -11 -10 -10 -10 ------------- Run | Scr Mat Min Exi Turns Passed 2378 | 83 878 1023 394 Spaces Moved 1459 | 60 563 590 246 Core 6 | 6 . . . Treads . | . . . . Legs 1253 | 54 452 501 246 Wheels 200 | . 111 89 . Hover . | . . . . Flight . | . . . . Fastest Speed 50 | 50 100 100 120 Average Speed 136 | 113 125 142 149 Slowest Speed 180 | 120 180 180 150 Overloaded Moves . | . . . . Propulsion Burnouts . | . . . . Robots Hopped . | . . . . Cave-ins Triggered . | . . . . Exploration Rate (%) 41 | 4 44 76 41 Regions Visited 3 Branch Regions 2 Pre-discovered Areas . | . . . . Known Exits Taken . | . . . . Unknown Exits Taken 3 | 1 1 1 . Scrap Searched 1 | . . 1 . Spaces Dug 2 | . . 2 . Terrain Destroyed 2 | . . 2 . Melee . | . . . . Projectile 2 | . . 2 . AOE . | . . . . Actions | -11 -10 -10 -10 --------- Run | Scr Mat Min Exi Total 1715 | 72 665 709 269 Wait 105 | . 50 55 . Move 1456 | 59 562 589 246 Hop . | . . . . Pick Up 30 | 7 8 9 6 Fast Attach 16 | 5 3 4 4 Attach 8 | 1 2 2 3 Detach 1 | . . . 1 Swap 7 | . 2 5 . Drop 18 | . 3 10 5 Fire 73 | . 35 35 3 Melee 1 | . . . 1 Ram . | . . . . Kick . | . . . . Crush . | . . . . Escape Stasis . | . . . . Rewire . | . . . . Trap . | . . . . Miscellaneous . | . . . . Route ------- -11/Scrapyard -10/Materials (discovered 2 exits: [*Mat] / *Min) -10/Mines (discovered 3 exits: [*Mat x2] / *Exi) -10/Exiles (discovered 1 exit: [*Min]) History --------- Turn | Location | Event 10 | -11/Scrapyard | Discovered new exit (range 15) 84 | -11/Scrapyard | Entered Materials 233 | -10/Materials | Discovered new exit (range 16) 308 | -10/Materials | Build established: Mutant 556 | -10/Materials | Discovered new exit (range 12) 855 | -10/Materials | Repaired Aluminum Leg 962 | -10/Materials | Entered Mines 965 | -10/Mines | Core integrity fell below 50% 1067 | -10/Mines | Met a Derelict shopkeep closing up shop 1297 | -10/Mines | Assembled infested the area 1364 | -10/Mines | Core integrity fell below 20% 1540 | -10/Mines | Learned Materials terminal intel 1789 | -10/Mines | Discovered new exit (range 12) 1803 | -10/Mines | Discovered new exit (range 9) 1979 | -10/Mines | Deemed a non-threat by the Exiles lab entrance 1979 | -10/Mines | Discovered new exit (range 5) 1985 | -10/Mines | Entered Exiles 2006 | -10/Exiles | Discovered new exit (range 15) 2036 | -10/Exiles | Met 8R-AWN 2075 | -10/Exiles | Met EX-HEX 2144 | -10/Exiles | Met EX-BIN 2162 | -10/Exiles | Aligned with FarCom system 2164 | -10/Exiles | Given EX-Vault access code 2200 | -10/Exiles | Opened EX-Vault 2208 | -10/Exiles | Found Prototype Energy Gun 2208 | -10/Exiles | Identified AWS/Thermal 2218 | -10/Exiles | Found Prototype Device 2218 | -10/Exiles | Identified Cloak of Protection 2225 | -10/Exiles | Found Prototype Device 2225 | -10/Exiles | Identified Chronowheel 2225 | -10/Exiles | Activated Chronowheel 2291 | -10/Exiles | Warned to stay clear of 0b10 Research branches 2369 | -10/Exiles | Attacked by the Exiles 2379 | -10/Exiles | Destroyed by as-22587 with Assembled Rifle Last Messages --------------- 02369_ EXILES: Hostile robot within lab perimeter. Defensive protocols time, folks! 02369_ Penetrated by HV Slug. 02369_ HV Slug penetrates Wall. 02369_ Penetrated by HV Slug. 02369_ HV Slug penetrates Wall. 02372_ Penetrated by HV Slug. 02372_ HV Slug penetrates Wall. 02372_ Penetrated by HV Slug. 02372_ HV Slug penetrates Wall. 02374_ Penetrated by HV Slug. 02374_ HV Slug penetrates Wall. 02374_ Penetrated by HV Slug. 02374_ HV Slug penetrates Wall. 02374_ Assault Rifle destroyed. 02377_ Penetrated by HV Slug. 02377_ HV Slug penetrates Wall. 02377_ Penetrated by HV Slug. 02377_ Aluminum Leg destroyed. 02377_ HV Slug penetrates Wall. Map ----- +----------------------------------------------------+ | """#?????????????????????????????????????????????? | | """#?????????????????????????????????????????????? | | """#?????????????????????????????????????????????? | | """#?????????????????????????????????????????????? | | """#?????????????????????????????????????????????? | | """#?????????????????????????????????????????????? | | """#?????????????????????????????????????????????? | | """#?????????????????????????????????????????????? | | """#?????????????????????????????????????????????? | | """"?????????????????????????????????????????????? | | """#?????????????????????????????????????????????? | | """"?????????????????????????????????????????????? | | #?????????????????????????????????????????????? | | """#?????????????????????????????????????????????? | | ####????????????????????????????????????????????## | | ???????????????????????????????????????????????# | | ??????????????????????????????????????????????# | | ?????????????????????????????????????????????? < | | ##########???????????????????????????????????? | | """""""""##??????????????????????????????????? | | " """ """"##????????????????????????????????## # | | "" " #???????????????????????????????## # | | " """#???????????????????????????????# | | " "#???????????#####???????????????# | | " "##?????????##"g #??????????????## | | ""###???????#" @ #?????????????## # | | """#??????##" a ##????????????# #? | | "#????### ###????????### ##? | | ##???# aa ########## #?? | | ##?## a #""""## ##?? | | ### * ##?? | | #; * #?? | | a #;;# ##? | | ""###"""""#### ## | | #"""##?#######??#### * | | a ######??????????????##### | | ##???????????????????????### | | " ##??????????????????????????### | | """ ""#?????????????????????????????### | | ""#" "##??????????????????????????????#" | | """##"""""""##???????????????????????????????#### | | ""???#########???????????????????????????????????# | | ?????????????????????????????????????????????????# | | ?????????????????????????????????????????????????? | | ?????????????????????????????????????????????????? | | ?????????????????????????????????????????????????? | | ?????????????????????????????????????????????????? | | ?????????????????????????????????????????????????? | | ?????????????????????????????????????????????????? | | ?????????????????????????????????????????????????? | +----------------------------------------------------+ Best States ------------- Heat Dissipation 25 Energy Generation 10 Energy Capacity 250 Matter Stores 300 Matter Capacity 300 Sight Range 16 Terrain Scan Density 10 Cloak Strength 5 Evasion (%) 40 Item Schematics ----------------- None Robot Schematics ------------------ None Fabricated ------------ Nothing Alien Tech Used ----------------- None Achievements -------------- None Challenges ------------ None Game ------ Seed SignalPhaseBiocell Manual? 0 Play Time 00:17:35 Cumulative 154.0 hours Start 2020.06.23 @ 03:15:20 End 2020.06.23 @ 03:36:36 Sessions 1 Manual Loads 0 Difficulty Rogue Special Mode None Game No. 81 Rogue 79 Adventurer 1 Explorer 1 Win Type - Total 2 Types 2/0/0/0/0/0/0 Lore% 58 Gallery% 71 Achievement% 52 Wizard Run 0 Options --------- ASCII 0 Keyboard 1 Movement Numpad Keybinds 0 Fullscreen 2 Font 24/Terminus Map View 76x50 Tactical HUD 1 Map Filters NONE Filters NONE Steam 1 RUN: a9d7985a-8737-4571-9805-18b594d79c03